[Event "Limburg Open 2022"]
[Site "Maastricht"]
[Date "2022.06.05"]
[Round "5.13"]
[White "Kopylov, Michael"]
[Black "Ratsma, Midas"]
[Result "1/2-1/2"]
[ECO "D10"]
[WhiteElo "2372"]
[BlackElo "2195"]
[PlyCount "74"]
[EventDate "2022.06.03"]
[EventType "swiss"]
[EventRounds "7"]
[EventCountry "NED"]
[SourceTitle "Limburg Open"]
[Source "Limburg Open"]
[SourceDate "2022.06.06"]
[SourceVersion "7"]
[SourceVersionDate "2022.06.06"]
[SourceQuality "1"]
[TimeControl "7200+15"]

1. d4 {[%emt 1:29:08]} d5 {[%emt 0:00:08]} 2. c4 {[%emt 0:00:26]} e5 {[%emt 0:
00:05]} 3. Nf3 {[%emt 0:05:49]} e4 {[%emt 0:00:10]} 4. Nfd2 {[%emt 0:00:06]} c6
{[%emt 0:00:06]} 5. Nc3 {[%emt 0:00:26]} Nf6 {[%emt 0:00:07]} 6. cxd5 {[%emt 0:
00:46]} cxd5 {[%emt 0:00:29]} 7. Nb3 {[%emt 0:00:13]} h6 {[%emt 0:12:44]} 8.
Bf4 {[%emt 0:00:31]} a6 {[%emt 0:01:36]} 9. e3 {[%emt 0:00:59]} Nc6 {[%emt 0:
01:46]} 10. Nc5 {[%emt 0:05:39]} Be7 {[%emt 0:06:33]} 11. Be2 {[%emt 0:12:09]}
O-O {[%emt 0:00:37]} 12. O-O {[%emt 0:01:04]} b6 {[%emt 0:06:06]} 13. N5a4 {
[%emt 0:02:23]} Be6 {[%emt 0:09:40]} 14. Rc1 {[%emt 0:06:40]} Na5 {[%emt 0:01:
23]} 15. b3 {[%emt 0:02:42]} Nb7 {[%emt 0:03:21]} 16. f3 {[%emt 0:15:29]} b5 {
[%emt 0:05:13]} 17. Nc5 {[%emt 0:04:42]} Nxc5 {[%emt 0:01:24]} 18. dxc5 {
[%emt 0:00:05]} Bxc5 {[%emt 0:13:42]} 19. Nxb5 {[%emt 0:12:54]} Bxe3+ {[%emt 0:
02:00]} 20. Bxe3 {[%emt 0:02:31]} axb5 {[%emt 0:00:17]} 21. Bxb5 {[%emt 0:04:
57]} exf3 {[%emt 0:03:50]} 22. Qxf3 {[%emt 0:01:08]} d4 {[%emt 0:02:07]} 23.
Bxh6 {[%emt 0:08:39]} Bd5 {[%emt 0:06:24]} 24. Qg3 {[%emt 0:12:37]} Nh5 {
[%emt 0:00:05]} 25. Qe5 {[%emt 0:00:46]} Rxa2 {[%emt 0:01:05]} 26. Rf2 {
[%emt 0:00:29]} Rxf2 {[%emt 0:05:11]} 27. Kxf2 {[%emt 0:00:01]} Qf6+ {[%emt 0:
01:35]} 28. Qxf6 {[%emt 0:00:17]} Nxf6 {[%emt 0:00:04]} 29. Bf4 {[%emt 0:05:09]
} Bxb3 {[%emt 0:03:21]} 30. Bc4 {[%emt 0:00:45]} Ba4 {[%emt 0:03:47]} 31. Ke2 {
[%emt 0:03:22]} Rd8 {[%emt 0:02:17]} 32. h3 {[%emt 0:02:54]} Bc6 {[%emt 0:02:
39]} 33. Bxf7+ {[%emt 0:01:38]} Kxf7 {[%emt 0:00:04]} 34. Rxc6 {[%emt 0:00:03]}
d3+ {[%emt 0:00:39]} 35. Kd1 {[%emt 0:00:32]} Ra8 {[%emt 0:03:28]} 36. Kd2 {
[%emt 0:02:01]} Ra3 {[%emt 0:01:17]} 37. Rc4 {[%emt 0:00:30]} Ra2+ {[%emt 0:01:
44]} 1/2-1/2

[Event "Limburg Open 2022"]
[Site "Maastricht"]
[Date "2022.06.05"]
[Round "5.14"]
[White "Nemegeer, Arne"]
[Black "De Rover, Yong Hoon"]
[Result "1-0"]
[ECO "B51"]
[WhiteElo "2107"]
[BlackElo "2359"]
[PlyCount "67"]
[EventDate "2022.06.03"]
[EventType "swiss"]
[EventRounds "7"]
[EventCountry "NED"]
[SourceTitle "Limburg Open"]
[Source "Limburg Open"]
[SourceDate "2022.06.06"]
[SourceVersion "7"]
[SourceVersionDate "2022.06.06"]
[SourceQuality "1"]
[TimeControl "7200+15"]

1. e4 {[%emt 0:57:05]} c5 {[%emt 0:00:37]} 2. Nf3 {[%emt 0:00:03]} d6 {[%emt 0:
00:13]} 3. Bb5+ {[%emt 0:00:04]} Nd7 {[%emt 0:02:34]} 4. O-O {[%emt 0:00:07]}
a6 {[%emt 0:01:30]} 5. Bd3 {[%emt 0:00:05]} Ngf6 {[%emt 0:00:38]} 6. Re1 {
[%emt 0:00:07]} b5 {[%emt 0:00:59]} 7. c4 {[%emt 0:00:56]} b4 {[%emt 0:13:00]}
8. a3 {[%emt 0:03:11]} bxa3 {[%emt 0:04:13]} 9. Rxa3 {[%emt 0:02:14]} e5 {
[%emt 0:00:51]} 10. Bc2 {[%emt 0:02:59]} g6 {[%emt 0:00:50]} 11. Nc3 {[%emt 0:
01:58]} Bg7 {[%emt 0:00:16]} 12. d3 {[%emt 0:06:07]} O-O {[%emt 0:01:01]} 13.
Nd2 {[%emt 0:02:54]} Nb8 {[%emt 0:03:00]} 14. Ba4 {[%emt 0:04:10]} Bd7 {
[%emt 0:08:18]} 15. Bxd7 {[%emt 0:03:39]} Nfxd7 {[%emt 0:00:52]} 16. Nf1 {
[%emt 0:04:24]} Nc6 {[%emt 0:00:30]} 17. Ne3 {[%emt 0:03:08]} Nb6 {[%emt 0:05:
00]} 18. Ned5 {[%emt 0:01:56]} Nxd5 {[%emt 0:00:29]} 19. Nxd5 {[%emt 0:00:15]}
f5 {[%emt 0:01:21]} 20. Qa4 {[%emt 0:19:06]} Nd4 {[%emt 0:02:04]} 21. Be3 {
[%emt 0:01:41]} fxe4 {[%emt 0:14:11]} 22. Bxd4 {[%emt 0:07:57]} exd4 {[%emt 0:
00:15]} 23. Rxe4 {[%emt 0:01:21]} Rf7 {[%emt 0:06:07]} 24. Ra1 {[%emt 0:05:35]}
g5 {[%emt 0:01:48]} 25. Rae1 {[%emt 0:09:48]} Be5 {[%emt 0:01:11]} 26. g3 {
[%emt 0:01:19]} Qf8 {[%emt 0:00:55]} 27. f4 {[%emt 0:15:19]} gxf4 {[%emt 0:00:
43]} 28. gxf4 {[%emt 0:00:05]} Rg7+ {[%emt 0:00:48]} 29. Kh1 {[%emt 0:00:30]}
Qf5 {[%emt 0:03:52]} 30. Qc2 {[%emt 0:01:47]} Bf6 {[%emt 0:13:13]} 31. Qe2 {
[%emt 0:03:36]} Kh8 {[%emt 0:03:09]} 32. Re8+ {[%emt 0:04:05]} Rxe8 {[%emt 0:
03:01]} 33. Qxe8+ {[%emt 0:00:13]} Rg8 {[%emt 0:00:05]} 34. Qf7 {[%emt 0:00:48]
} 1-0

[Event "Limburg Open 2022"]
[Site "Maastricht"]
[Date "2022.06.06"]
[Round "6.1"]
[White "Donchenko, Alexander"]
[Black "Warmerdam, Max"]
[Result "1/2-1/2"]
[ECO "E68"]
[WhiteElo "2602"]
[BlackElo "2613"]
[PlyCount "34"]
[EventDate "2022.06.03"]
[EventType "swiss"]
[EventRounds "7"]
[EventCountry "NED"]
[SourceTitle "Limburg Open"]
[Source "Limburg Open"]
[SourceDate "2022.06.06"]
[SourceVersion "7"]
[SourceVersionDate "2022.06.06"]
[SourceQuality "1"]
[TimeControl "7200+15"]

1. c4 {[%emt 0:00:03]} g6 {[%emt 0:00:32]} 2. g3 {[%emt 0:02:57]} Bg7 {[%emt 0:
00:05]} 3. Bg2 {[%emt 0:00:06]} Nf6 {[%emt 0:00:06]} 4. Nc3 {[%emt 0:00:59]}
O-O {[%emt 0:01:24]} 5. Nf3 {[%emt 0:01:45]} d6 {[%emt 0:01:19]} 6. d4 {
[%emt 0:02:40]} Nbd7 {[%emt 0:02:39]} 7. O-O {[%emt 0:00:50]} e5 {[%emt 0:00:
26]} 8. e4 {[%emt 0:00:43]} exd4 {[%emt 0:00:40]} 9. Nxd4 {[%emt 0:00:08]} Nc5
{[%emt 0:00:35]} 10. h3 {[%emt 0:02:54]} Re8 {[%emt 0:00:11]} 11. Re1 {[%emt 0:
00:36]} h6 {[%emt 0:00:07]} 12. Qc2 {[%emt 0:17:27]} Nfxe4 {[%emt 0:00:37]} 13.
Nxe4 {[%emt 0:00:38]} Bxd4 {[%emt 0:00:10]} 14. Bxh6 {[%emt 0:01:36]} Nxe4 {
[%emt 0:00:06]} 15. Rxe4 {[%emt 0:04:29]} Rxe4 {[%emt 0:00:38]} 16. Qxe4 {
[%emt 0:00:10]} Bxb2 {[%emt 0:00:05]} 17. Re1 {[%emt 0:04:25]} Be5 {[%emt 0:00:
21]} 1/2-1/2

[Event "Limburg Open 2022"]
[Site "Maastricht"]
[Date "2022.06.06"]
[Round "6.2"]
[White "Ernst, Sipke"]
[Black "Van Foreest, Lucas"]
[Result "0-1"]
[ECO "C55"]
[WhiteElo "2538"]
[BlackElo "2553"]
[PlyCount "62"]
[EventDate "2022.06.03"]
[EventType "swiss"]
[EventRounds "7"]
[EventCountry "NED"]
[SourceTitle "Limburg Open"]
[Source "Limburg Open"]
[SourceDate "2022.06.06"]
[SourceVersion "7"]
[SourceVersionDate "2022.06.06"]
[SourceQuality "1"]
[TimeControl "7200+15"]

1. e4 {[%emt 0:00:01]} e5 {[%emt 0:02:44]} 2. Nf3 {[%emt 0:01:16]} Nc6 {
[%emt 0:00:06]} 3. Bc4 {[%emt 0:00:03]} Nf6 {[%emt 0:00:07]} 4. d3 {[%emt 0:00:
05]} Be7 {[%emt 0:00:42]} 5. a4 {[%emt 0:02:16]} O-O {[%emt 0:00:47]} 6. h3 {
[%emt 0:03:20]} d5 {[%emt 0:00:04]} 7. exd5 {[%emt 0:00:05]} Nxd5 {[%emt 0:00:
04]} 8. O-O {[%emt 0:00:14]} Nb6 {[%emt 0:12:12]} 9. Bb3 {[%emt 0:05:42]} Bf5 {
[%emt 0:00:09]} 10. a5 {[%emt 0:02:39]} Nd7 {[%emt 0:01:13]} 11. a6 {[%emt 0:
02:03]} Nc5 {[%emt 0:00:05]} 12. axb7 {[%emt 0:05:56]} Rb8 {[%emt 0:00:05]} 13.
Bc4 {[%emt 0:10:26]} Rxb7 {[%emt 0:04:35]} 14. Nc3 {[%emt 0:02:22]} Rb8 {
[%emt 0:06:59]} 15. Be3 {[%emt 0:06:18]} Bd6 {[%emt 0:06:40]} 16. Re1 {[%emt 0:
07:54]} Ne6 {[%emt 0:00:48]} 17. Ra6 {[%emt 0:07:24]} Ned4 {[%emt 0:05:23]} 18.
Bxd4 {[%emt 0:06:08]} Nxd4 {[%emt 0:02:39]} 19. Nxd4 {[%emt 0:03:20]} exd4 {
[%emt 0:00:04]} 20. Nb5 {[%emt 0:01:52]} Bb4 {[%emt 0:05:27]} 21. Re5 {[%emt 0:
19:26]} Bc8 {[%emt 0:02:24]} 22. Ra4 {[%emt 0:07:29]} Bd6 {[%emt 0:03:14]} 23.
Rd5 {[%emt 0:07:07]} Rxb5 {[%emt 0:04:34]} 24. Rxb5 {[%emt 0:00:48]} Bd7 {
[%emt 0:00:21]} 25. Rba5 {[%emt 0:02:41]} Bxa4 {[%emt 0:00:15]} 26. Rxa4 {
[%emt 0:00:04]} Qf6 {[%emt 0:02:42]} 27. Rxa7 {[%emt 0:02:05]} Re8 {[%emt 0:01:
53]} 28. g3 {[%emt 0:02:57]} g6 {[%emt 0:04:20]} 29. Kg2 {[%emt 0:03:23]} Re5 {
[%emt 0:00:23]} 30. Qd2 {[%emt 0:02:14]} Kg7 {[%emt 0:00:38]} 31. Ra5 {[%emt 0:
01:28]} Bb4 {[%emt 0:01:12]} 0-1

[Event "Limburg Open 2022"]
[Site "Maastricht"]
[Date "2022.06.06"]
[Round "6.3"]
[White "Dardha, Daniel"]
[Black "Kopylov, Daniel"]
[Result "1-0"]
[ECO "E60"]
[WhiteElo "2555"]
[BlackElo "2326"]
[PlyCount "79"]
[EventDate "2022.06.03"]
[EventType "swiss"]
[EventRounds "7"]
[EventCountry "NED"]
[SourceTitle "Limburg Open"]
[Source "Limburg Open"]
[SourceDate "2022.06.06"]
[SourceVersion "7"]
[SourceVersionDate "2022.06.06"]
[SourceQuality "1"]
[TimeControl "7200+15"]

1. d4 {[%emt 0:00:06]} Nf6 {[%emt 0:03:14]} 2. c4 {[%emt 0:00:06]} g6 {[%emt 0:
00:17]} 3. h4 {[%emt 0:00:08]} Bg7 {[%emt 0:01:02]} 4. Nc3 {[%emt 0:00:07]} d5
{[%emt 0:00:29]} 5. h5 {[%emt 0:00:13]} Nxh5 {[%emt 0:15:48]} 6. cxd5 {[%emt 0:
05:56]} c6 {[%emt 0:05:18]} 7. e4 {[%emt 0:00:40]} Nf6 {[%emt 0:06:58]} 8. dxc6
{[%emt 0:08:54]} bxc6 {[%emt 0:03:30]} 9. Bh6 {[%emt 0:03:06]} Bxh6 {[%emt 0:
04:57]} 10. Rxh6 {[%emt 0:00:12]} Qa5 {[%emt 0:06:06]} 11. Qd2 {[%emt 0:02:34]}
Ba6 {[%emt 0:02:20]} 12. Nf3 {[%emt 0:04:36]} Bxf1 {[%emt 0:01:31]} 13. Kxf1 {
[%emt 0:00:17]} Nbd7 {[%emt 0:00:16]} 14. g3 {[%emt 0:03:16]} Rd8 {[%emt 0:08:
42]} 15. Kg2 {[%emt 0:03:19]} Qb4 {[%emt 0:12:06]} 16. Qc2 {[%emt 0:13:45]} e5
{[%emt 0:03:34]} 17. Rh4 {[%emt 0:12:18]} Qe7 {[%emt 0:04:29]} 18. Ne2 {
[%emt 0:05:27]} O-O {[%emt 0:03:38]} 19. Qxc6 {[%emt 0:07:46]} Rc8 {[%emt 0:02:
47]} 20. Qa4 {[%emt 0:01:10]} exd4 {[%emt 0:05:46]} 21. Qxd4 {[%emt 0:02:27]}
Rc2 {[%emt 0:03:45]} 22. Nc3 {[%emt 0:02:08]} Rb8 {[%emt 0:15:57]} 23. e5 {
[%emt 0:03:18]} Rbxb2 {[%emt 0:01:45]} 24. Nd1 {[%emt 0:00:44]} Nxe5 {[%emt 0:
04:38]} 25. Qxe5 {[%emt 0:04:27]} Qxe5 {[%emt 0:00:07]} 26. Nxe5 {[%emt 0:00:
04]} Rxa2 {[%emt 0:00:05]} 27. Ra4 {[%emt 0:04:26]} Rxa1 {[%emt 0:01:05]} 28.
Rxa1 {[%emt 0:00:02]} Rc7 {[%emt 0:00:02]} 29. Ne3 {[%emt 0:00:18]} Kg7 {
[%emt 0:01:07]} 30. Ra4 {[%emt 0:01:01]} h5 {[%emt 0:01:27]} 31. N3c4 {[%emt 0:
01:18]} Nd7 {[%emt 0:00:45]} 32. Nd6 {[%emt 0:00:45]} Nf6 {[%emt 0:03:45]} 33.
Ndxf7 {[%emt 0:01:20]} Rxf7 {[%emt 0:00:02]} 34. Nxf7 {[%emt 0:00:10]} Kxf7 {
[%emt 0:00:01]} 35. Rxa7+ {[%emt 0:00:09]} Ke6 {[%emt 0:00:04]} 36. Kf3 {
[%emt 0:00:14]} Ng4 {[%emt 0:00:46]} 37. Ra4 {[%emt 0:00:53]} Ne5+ {[%emt 0:00:
52]} 38. Kf4 {[%emt 0:00:25]} Nd3+ {[%emt 0:00:07]} 39. Kg5 {[%emt 0:00:20]}
Nxf2 {[%emt 0:00:22]} 40. Kxg6 {[%emt 0:00:19]} 1-0

[Event "Limburg Open 2022"]
[Site "Maastricht"]
[Date "2022.06.06"]
[Round "6.4"]
[White "Zwirs, Nico"]
[Black "Slagboom, Leandro"]
[Result "1-0"]
[ECO "E09"]
[WhiteElo "2475"]
[BlackElo "2098"]
[PlyCount "105"]
[EventDate "2022.06.03"]
[EventType "swiss"]
[EventRounds "7"]
[EventCountry "NED"]
[SourceTitle "Limburg Open"]
[Source "Limburg Open"]
[SourceDate "2022.06.06"]
[SourceVersion "7"]
[SourceVersionDate "2022.06.06"]
[SourceQuality "1"]
[TimeControl "7200+15"]

1. c4 {[%emt 0:00:02]} e6 {[%emt 0:00:13]} 2. Nf3 {[%emt 0:00:58]} Nf6 {
[%emt 0:01:58]} 3. g3 {[%emt 0:00:29]} d5 {[%emt 0:01:02]} 4. Bg2 {[%emt 0:01:
16]} Be7 {[%emt 0:02:35]} 5. O-O {[%emt 0:00:26]} O-O {[%emt 0:00:05]} 6. d4 {
[%emt 0:00:08]} c6 {[%emt 0:06:26]} 7. Nbd2 {[%emt 0:00:44]} Nbd7 {[%emt 0:00:
38]} 8. Qc2 {[%emt 0:00:26]} b6 {[%emt 0:00:09]} 9. e4 {[%emt 0:01:35]} Ba6 {
[%emt 0:00:27]} 10. e5 {[%emt 0:04:42]} Ne8 {[%emt 0:00:43]} 11. Re1 {[%emt 0:
00:25]} Rc8 {[%emt 0:04:51]} 12. cxd5 {[%emt 0:01:03]} cxd5 {[%emt 0:00:30]}
13. Qd1 {[%emt 0:05:37]} Qc7 {[%emt 0:03:03]} 14. Nf1 {[%emt 0:00:53]} Qc2 {
[%emt 0:04:08]} 15. Qxc2 {[%emt 0:01:53]} Rxc2 {[%emt 0:00:03]} 16. Ne3 {
[%emt 0:00:12]} Rc6 {[%emt 0:03:18]} 17. Bd2 {[%emt 0:00:11]} Nc7 {[%emt 0:02:
38]} 18. a4 {[%emt 0:05:17]} Bd3 {[%emt 0:14:47]} 19. Rec1 {[%emt 0:07:54]}
Rxc1+ {[%emt 0:01:14]} 20. Rxc1 {[%emt 0:00:02]} Rc8 {[%emt 0:07:46]} 21. Ne1 {
[%emt 0:15:52]} Ba6 {[%emt 0:04:40]} 22. Bf1 {[%emt 0:00:10]} Bxf1 {[%emt 0:08:
07]} 23. Kxf1 {[%emt 0:00:13]} Kf8 {[%emt 0:02:11]} 24. Nd3 {[%emt 0:01:20]}
Ke8 {[%emt 0:01:40]} 25. Ke2 {[%emt 0:06:36]} Nb8 {[%emt 0:04:45]} 26. Bb4 {
[%emt 0:26:56]} Bxb4 {[%emt 0:01:19]} 27. Nxb4 {[%emt 0:00:31]} Kd7 {[%emt 0:
00:17]} 28. f4 {[%emt 0:06:49]} Nca6 {[%emt 0:06:09]} 29. Rxc8 {[%emt 0:03:00]}
Kxc8 {[%emt 0:00:05]} 30. Nxa6 {[%emt 0:08:36]} Nxa6 {[%emt 0:00:06]} 31. h4 {
[%emt 0:00:10]} Nc7 {[%emt 0:17:09]} 32. h5 {[%emt 0:01:37]} Ne8 {[%emt 0:03:
14]} 33. f5 {[%emt 0:02:22]} Kd7 {[%emt 0:06:36]} 34. Kf3 {[%emt 0:00:56]} g6 {
[%emt 0:02:06]} 35. g4 {[%emt 0:07:13]} gxf5 {[%emt 0:05:34]} 36. gxf5 {
[%emt 0:00:17]} Ke7 {[%emt 0:00:31]} 37. f6+ {[%emt 0:02:39]} Kf8 {[%emt 0:00:
40]} 38. Nc2 {[%emt 0:01:26]} Nc7 {[%emt 0:02:42]} 39. Kf4 {[%emt 0:03:11]} Kg8
{[%emt 0:01:08]} 40. Nb4 {[%emt 0:00:17]} a5 {[%emt 0:00:49]} 41. Nc6 {[%emt 0:
00:25]} Kh8 {[%emt 0:01:05]} 42. b3 {[%emt 0:00:19]} Kg8 {[%emt 0:00:29]} 43.
Ne7+ {[%emt 0:00:20]} Kh8 {[%emt 0:00:07]} 44. Ke3 {[%emt 0:02:06]} h6 {
[%emt 0:01:20]} 45. Kd3 {[%emt 0:00:21]} Kh7 {[%emt 0:01:25]} 46. Kc3 {[%emt 0:
00:41]} Kh8 {[%emt 0:00:22]} 47. b4 {[%emt 0:00:39]} Na6 {[%emt 0:00:23]} 48.
bxa5 {[%emt 0:00:19]} bxa5 {[%emt 0:00:02]} 49. Nc6 {[%emt 0:00:02]} Kg8 {
[%emt 0:00:13]} 50. Nxa5 {[%emt 0:00:01]} Kf8 {[%emt 0:00:01]} 51. Nb7 {
[%emt 0:00:25]} Ke8 {[%emt 0:00:14]} 52. Nd6+ {[%emt 0:00:01]} Kf8 {[%emt 0:00:
06]} 53. Kb3 {[%emt 0:00:05]} 1-0

[Event "Limburg Open 2022"]
[Site "Maastricht"]
[Date "2022.06.06"]
[Round "6.5"]
[White "Fischer, Daniel"]
[Black "Gurevich, Mikhail"]
[Result "1/2-1/2"]
[ECO "C13"]
[WhiteElo "2324"]
[BlackElo "2576"]
[PlyCount "71"]
[EventDate "2022.06.03"]
[EventType "swiss"]
[EventRounds "7"]
[EventCountry "NED"]
[SourceTitle "Limburg Open"]
[Source "Limburg Open"]
[SourceDate "2022.06.06"]
[SourceVersion "7"]
[SourceVersionDate "2022.06.06"]
[SourceQuality "1"]
[TimeControl "7200+15"]

1. e4 {[%emt 0:00:03]} e6 {[%emt 0:15:34]} 2. d4 {[%emt 0:00:06]} d5 {[%emt 0:
00:04]} 3. Nc3 {[%emt 0:00:03]} Nf6 {[%emt 0:00:05]} 4. Bg5 {[%emt 0:00:21]}
dxe4 {[%emt 0:00:11]} 5. Nxe4 {[%emt 0:00:05]} Be7 {[%emt 0:00:08]} 6. Nxf6+ {
[%emt 0:01:06]} Bxf6 {[%emt 0:00:15]} 7. Bxf6 {[%emt 0:00:04]} Qxf6 {[%emt 0:
00:05]} 8. Nf3 {[%emt 0:00:07]} c5 {[%emt 0:06:10]} 9. Bb5+ {[%emt 0:03:42]}
Bd7 {[%emt 0:00:07]} 10. Qe2 {[%emt 0:05:04]} O-O {[%emt 0:05:15]} 11. O-O-O {
[%emt 0:03:29]} a6 {[%emt 0:02:15]} 12. Bxd7 {[%emt 0:19:17]} Nxd7 {[%emt 0:00:
57]} 13. d5 {[%emt 0:01:12]} exd5 {[%emt 0:13:17]} 14. Rxd5 {[%emt 0:00:43]}
Rfe8 {[%emt 0:00:06]} 15. Qd2 {[%emt 0:10:24]} Nb6 {[%emt 0:00:50]} 16. Rd6 {
[%emt 0:01:25]} Re6 {[%emt 0:05:26]} 17. Rxe6 {[%emt 0:01:55]} Qxe6 {[%emt 0:
00:06]} 18. Rd1 {[%emt 0:03:35]} h6 {[%emt 0:09:45]} 19. Qd6 {[%emt 0:02:23]}
Re8 {[%emt 0:03:22]} 20. Qc7 {[%emt 0:10:51]} Qg6 {[%emt 0:08:00]} 21. g3 {
[%emt 0:15:31]} Qf6 {[%emt 0:05:20]} 22. Qxb7 {[%emt 0:17:46]} Re2 {[%emt 0:02:
33]} 23. Rd2 {[%emt 0:04:54]} Re7 {[%emt 0:05:55]} 24. Qb8+ {[%emt 0:01:50]}
Kh7 {[%emt 0:00:07]} 25. Qd8 {[%emt 0:04:58]} Na4 {[%emt 0:03:22]} 26. Qd3+ {
[%emt 0:01:25]} g6 {[%emt 0:00:07]} 27. c3 {[%emt 0:00:43]} c4 {[%emt 0:02:00]}
28. Qxc4 {[%emt 0:01:57]} Nxb2 {[%emt 0:00:22]} 29. Kxb2 {[%emt 0:02:44]} Qxf3
{[%emt 0:00:06]} 30. Kc2 {[%emt 0:01:05]} Qf5+ {[%emt 0:01:04]} 31. Qd3 {
[%emt 0:00:01]} Qa5 {[%emt 0:00:10]} 32. Qd5 {[%emt 0:00:24]} Qa4+ {[%emt 0:00:
19]} 33. Kb2 {[%emt 0:00:49]} Qe8 {[%emt 0:01:40]} 34. Kc2 {[%emt 0:00:27]}
Qa4+ {[%emt 0:00:10]} 35. Kb2 {[%emt 0:00:04]} Qe8 {[%emt 0:00:08]} 36. Kc2 {
[%emt 0:00:04]} 1/2-1/2

[Event "Limburg Open 2022"]
[Site "Maastricht"]
[Date "2022.06.06"]
[Round "6.6"]
[White "Braun, Christian"]
[Black "Pham, Khoi"]
[Result "1-0"]
[ECO "B86"]
[WhiteElo "2428"]
[BlackElo "2244"]
[PlyCount "93"]
[EventDate "2022.06.03"]
[EventType "swiss"]
[EventRounds "7"]
[EventCountry "NED"]
[SourceTitle "Limburg Open"]
[Source "Limburg Open"]
[SourceDate "2022.06.06"]
[SourceVersion "7"]
[SourceVersionDate "2022.06.06"]
[SourceQuality "1"]
[TimeControl "7200+15"]

1. e4 {[%emt 0:13:13]} c5 {[%emt 0:02:11]} 2. Nf3 {[%emt 0:00:18]} d6 {[%emt 0:
00:12]} 3. d4 {[%emt 0:00:10]} cxd4 {[%emt 0:00:05]} 4. Nxd4 {[%emt 0:00:06]}
Nf6 {[%emt 0:00:06]} 5. Nc3 {[%emt 0:00:06]} a6 {[%emt 0:00:04]} 6. Bc4 {
[%emt 0:00:07]} e6 {[%emt 0:01:12]} 7. Bb3 {[%emt 0:00:48]} Be7 {[%emt 0:04:21]
} 8. g4 {[%emt 0:01:50]} Nc6 {[%emt 0:08:10]} 9. g5 {[%emt 0:03:18]} Nxd4 {
[%emt 0:03:36]} 10. Qxd4 {[%emt 0:03:40]} e5 {[%emt 0:17:00]} 11. Qc4 {[%emt 0:
13:54]} Be6 {[%emt 0:00:48]} 12. Qe2 {[%emt 0:00:16]} Nd7 {[%emt 0:01:44]} 13.
Bxe6 {[%emt 0:00:08]} fxe6 {[%emt 0:00:03]} 14. Qh5+ {[%emt 0:01:03]} g6 {
[%emt 0:00:32]} 15. Qg4 {[%emt 0:00:05]} Nf8 {[%emt 0:13:06]} 16. f4 {[%emt 0:
04:36]} h6 {[%emt 0:18:02]} 17. fxe5 {[%emt 0:02:37]} hxg5 {[%emt 0:14:17]} 18.
Bd2 {[%emt 0:02:27]} dxe5 {[%emt 0:04:22]} 19. O-O-O {[%emt 0:02:12]} Rh4 {
[%emt 0:00:32]} 20. Qf3 {[%emt 0:02:02]} Qc7 {[%emt 0:01:21]} 21. Be3 {[%emt 0:
06:26]} Nd7 {[%emt 0:01:12]} 22. Qg3 {[%emt 0:04:09]} Rf4 {[%emt 0:02:59]} 23.
Bxf4 {[%emt 0:02:10]} exf4 {[%emt 0:00:04]} 24. Qg4 {[%emt 0:05:08]} Qc6 {
[%emt 0:03:46]} 25. Qh3 {[%emt 0:00:13]} O-O-O {[%emt 0:05:24]} 26. Qh7 {
[%emt 0:01:44]} Bf6 {[%emt 0:00:11]} 27. Rd3 {[%emt 0:02:26]} Rf8 {[%emt 0:02:
06]} 28. Rhd1 {[%emt 0:02:02]} Ne5 {[%emt 0:00:49]} 29. Rd6 {[%emt 0:00:27]}
Qe8 {[%emt 0:01:41]} 30. Qh3 {[%emt 0:00:46]} g4 {[%emt 0:01:05]} 31. Qf1 {
[%emt 0:00:06]} Rf7 {[%emt 0:07:35]} 32. Qxf4 {[%emt 0:03:18]} Nc4 {[%emt 0:03:
15]} 33. e5 {[%emt 0:01:52]} Nxd6 {[%emt 0:00:33]} 34. exf6 {[%emt 0:01:23]}
Nf5 {[%emt 0:00:02]} 35. Ne4 {[%emt 0:00:51]} Rd7 {[%emt 0:01:45]} 36. Nd6+ {
[%emt 0:08:08]} Nxd6 {[%emt 0:00:01]} 37. Rxd6 {[%emt 0:00:09]} Rxd6 {[%emt 0:
00:43]} 38. Qxd6 {[%emt 0:00:05]} Qf7 {[%emt 0:00:20]} 39. Qd4 {[%emt 0:01:09]}
Kc7 {[%emt 0:00:54]} 40. a4 {[%emt 0:00:16]} Kc8 {[%emt 0:00:40]} 41. a5 {
[%emt 0:00:11]} Kc7 {[%emt 0:01:54]} 42. Kd2 {[%emt 0:02:37]} Qd7 {[%emt 0:01:
02]} 43. Qxd7+ {[%emt 0:02:50]} Kxd7 {[%emt 0:00:01]} 44. Ke3 {[%emt 0:00:11]}
e5 {[%emt 0:01:00]} 45. Ke4 {[%emt 0:00:06]} Ke6 {[%emt 0:00:01]} 46. f7 {
[%emt 0:00:10]} Kxf7 {[%emt 0:00:01]} 47. Kxe5 {[%emt 0:00:07]} 1-0